Cogmind - Beta 15 @@@ ROGUE MODE // 2025.07.10 @ 14:54:08 Player: BlobtheGreat Result: Destroyed by G-34 Mercenary with Small Laser Performance ------------- Evolutions (0) 0 Regions Visited (1) 200 Robots Destroyed (27) 135 Value Destroyed (602) 602 Prototype IDs (3) 60 Alien Tech Used (0) 0 Bonus (0) 0 TOTAL SCORE: 997 Bonus ------- None Cogmind --------- Core Integrity 0/250 Matter 284/300 Energy 249/250 System Corruption 0% Temperature Cool (30) Movement Walking (190) Ox1 Location -10/Materials Parts ------- > --- POWER (1) -------- Ion Engine > --- PROPULSION (2) --- Aluminum Leg Aluminum Leg > --- UTILITY (2) ------ Large Storage Unit Utility Shielding > --- WEAPON (2) ------- Medium Laser Assault Rifle > --- INVENTORY (15) --- Light Nuclear Core Light Treads Light Treads Light Treads Compact Wheel Small Storage Unit Large Matter Pod (148) Seismic Detector Seismic Detector Datajack Heavy Hammer Peak State ------------ > --- POWER ------------ Ion Engine > --- PROPULSION ------- Aluminum Leg Aluminum Leg > --- UTILITY ---------- Large Storage Unit Shield Generator > --- WEAPON ----------- Assault Rifle Assault Rifle > --- INVENTORY -------- Light Nuclear Core Light Treads Light Treads Aluminum Leg Compact Wheel Small Storage Unit Seismic Detector Seismic Detector Utility Shielding Medium Laser Datajack Heavy Hammer [Rating: 9] Favorites ----------- Power Light Ion Engine Engine Light Ion Engine Propulsion Aluminum Leg Leg Aluminum Leg Utility Large Storage Unit Device Seismic Detector Storage Large Storage Unit Protection Utility Shielding Weapon Assault Rifle Energy Gun Medium Laser Ballistic Gun Assault Rifle Build | -11 -10 ------- Run | Yrd Mat Slots Evolved . | . . Power . | . . Propulsion . | . . Utility . | . . Weapon . | . . Parts Attached 22 | 7 15 Power 3 | 1 2 Engine 3 | 1 2 Core . | . . Reactor . | . . Propulsion 7 | 2 5 Treads . | . . Leg 7 | 2 5 Wheel . | . . Hover . | . . Flight . | . . Utility 7 | 2 5 Device 3 | 1 2 Storage 3 | 1 2 Processor . | . . Hackware . | . . Protection 1 | . 1 Artifact . | . . Weapon 5 | 2 3 Energy Gun 1 | . 1 Energy Cannon . | . . Ballistic Gun 4 | 2 2 Ballistic Cannon . | . . Launcher . | . . Special Weapon . | . . Impact Weapon . | . . Slashing Weapon . | . . Piercing Weapon . | . . Special Melee Weapon . | . . Unidentified Prototypes . | . . Parts Lost 7 | . 7 Power 2 | . 2 Propulsion 1 | . 1 Utility 1 | . 1 Weapon 3 | . 3 Highest Loss Streak 2 | . 2 To Critical Strikes . | . . Average Backups 12 | 4 12 Power 1 | . 1 Propulsion 4 | 3 4 Utility 3 | . 4 Weapon 2 | . 2 Tool/Special . | . . Unused Backups 9 | . 9 Power 1 | . 1 Propulsion 5 | . 5 Utility 1 | . 1 Weapon 1 | . 1 Tool/Special 1 | . 1 Average Slot Usage (%) 98 | . 98 Engine 13 | . 13 Leg 27 | . 27 Device 7 | . 7 Storage 14 | . 14 Protection 6 | . 6 Energy Gun 2 | . 2 Ballistic Gun 24 | . 24 Peak Build Rating 9 | 7 9 Average Rating 7 | 5 8 On Entrance 3 | . 7 Naked Turns . | . . Heaviest Build 31 | 12 31 Greatest Support 20 | 20 20 Greatest Overweight (x) 2 | . 2 Average Overweight (x) . | . 1 Largest Inventory Capacity 15 | 8 15 Average Capacity 14 | 7 14 Most Carried 15 | 7 15 Average Carried 12 | 5 12 Final Capacity 15 | 8 15 Final Carried 11 | 7 11 Class Distribution -------------------- 100% | Mutant Dominant Class ---------------- Mutant | -10/Materials Resources | -11 -10 ----------- Run | Yrd Mat Matter Collected 1028 | 314 714 Remotely . | . . Salvage Created 958 | 168 790 Parts 60 | 10 50 Haulers Intercepted 1 | . 1 Recyclers Shooed 2 | . 2 Parts Field Recycled . | . . Retrieved Matter . | . . Parts Self-Destructed . | . . Prevented . | . . Kills | -11 -10 ------- Run | Yrd Mat Combat Hostiles Destroyed 16 | . 16 Guns 16 | . 16 Classes Destroyed 8 | 2 6 Worker 1 | . 1 Tunneler 4 | 4 . Hauler 1 | . 1 Recycler 2 | 1 1 Operator 1 | . 1 Watcher 2 | . 2 Swarmer 3 | . 3 Grunt 13 | . 13 Best Kill Streak 4 | 3 4 Combat Bots Only 4 | . 4 Max Kills in Single Turn 1 | 1 1 Gunslinging . | . . Exploded . | . . Melee . | . . Uniques/NPCs Destroyed . | . . Combat | -11 -10 -------- Run | Yrd Mat Hostile Shots Fired 144 | . 144 Missed 35 | . 35 Hits 109 | . 109 Projectile 109 | . 109 Damage Taken 1082 | . 1082 Core 256 | . 256 Absorbed by Shields 77 | . 77 Redirected to Shielding 14 | . 14 Core Remaining (%) 100 | 100 . Volleys Fired 113 | 11 102 Largest 2 | 2 2 Hottest 70 | 40 70 Shots Fired 214 | 22 192 Gun 214 | 22 192 Cannon . | . . Launcher . | . . Special . | . . Kinetic 206 | 22 184 Thermal 8 | . 8 Explosive . | . . Electromagnetic . | . . Robot Hit Streak 17 | 7 17 Robot Miss Streak 6 | 2 6 Penetration Max . | . . Secondary Targets 2 | . 2 Max Gunslinging Chain 1 | . 1 Shots Hit Robots 149 | 13 136 Core Hits 56 | 8 48 Critical Kills 1 | . 1 Critical Parts Destroyed . | . . Critical Strikes 1 | . 1 Destroy 1 | . 1 Melee Attacks . | . . Impact . | . . Slashing . | . . Piercing . | . . Sneak Attacks . | . . Combat Hostiles . | . . Follow-up Attacks . | . . Damage Inflicted 1702 | 135 1567 Guns 1702 | 135 1567 Cannons . | . . Explosions . | . . Melee . | . . Ramming . | . . Kinetic 1649 | 135 1514 Thermal 53 | . 53 Explosive . | . . Electromagnetic . | . . Impact . | . . Slashing . | . . Piercing . | . . Highest Corruption . | . . Average Corruption . | . . Corruption Purged . | . . Corruption Blocked . | . . Overload Shots . | . . Overflow Damage . | . . Projectiles . | . . Explosions . | . . Melee . | . . Knockbacks . | . . Impact . | . . Kinetic . | . . Secondary . | . . Self-Inflicted Damage . | . . Shots . | . . Rammed . | . . Targets Rammed . | . . Kicked . | . . Crushed . | . . Highest Temperature 66 | . 66 Average Temperature 12 | . 12 Received Heat Transfer 495 | . 495 Siege Activations . | . . Martial Activations . | . . Shielding Activations . | . . Robots Disrupted . | . . Combat Hostiles . | . . Robots Corrupted . | . . Combat Hostiles . | . . Parts Fried . | . . Impact Corruptions . | . . Robots Melted . | . . Combat Hostiles . | . . Parts Melted . | . . Heat Transferred 148 | . 148 Parts Sabotaged . | . . Parts Stolen . | . . Parts Stripped . | . . Power Chain Reactions . | . . Alert | -11 -10 ------- Run | Yrd Mat Maximum Alert Level 1 | . 1 Low Security (%) 96 | 100 96 Level 1 3 | . 3 Level 2 . | . . Level 3 . | . . Level 4 . | . . Level 5 . | . . High Security . | . . Max Security . | . . Peak Influence 215 | 10 215 Initial . | . . Average 87 | 1 97 Influence Increases 609 | 25 584 Destroy 0b10 Robot/C 320 | . 320 Destroy 0b10 Robot/NC 55 | 25 30 Destroy Leader 66 | . 66 Trap Triggered on 0b10 10 | . 10 Successful Hack 37 | . 37 Destroy Structure 1 | . 1 Lose Combat Pursuer 120 | . 120 Influence Decreases 477 | 25 452 Time Decay 407 | 25 382 Lost Part 70 | . 70 Squads Dispatched 3 | . 3 Investigation 2 | . 2 Extermination . | . . Reinforcement 1 | . 1 Assault . | . . Garrison . | . . Intercept . | . . Searches Triggered . | . . Construction Impeded . | . . Haulers Reinforced . | . . Active Scanning Responses . | . . Cargo Convoy Interrupts . | . . Stealth | -11 -10 --------- Run | Yrd Mat Distress Signals 3 | . 3 Communications Jammed . | . . Distress Signals . | . . Times Spotted 36 | . 36 Peak Tracking Total 6 | . 6 Tactical Retreats 5 | . 5 Traps | -11 -10 ------- Run | Yrd Mat Traps Triggered 2 | . 2 Indirectly . | . . Trap Hack Attempts . | . . Triggered . | . . Disarmed . | . . Reprogrammed 3 | . 3 Reused 1 | . 1 Traps Extracted . | . . Installed . | . . Triggered 1 | . 1 Machines | -11 -10 ---------- Run | Yrd Mat Machines Disabled . | . . Max in Single Turn . | . . Machines Repaired . | . . Machines Dismantled . | . . Machines Sabotaged . | . . Overloaded Fab Kills . | . . Hacking | -11 -10 --------- Run | Yrd Mat Machines Accessed 6 | . 6 Terminals 6 | . 6 Fabricators . | . . Repair Stations . | . . Recycling Units . | . . Scanalyzers . | . . Garrison Access . | . . Total Hacks 19 | . 19 Successful 14 | . 14 Failed 5 | . 5 Catastrophic . | . . Database Lockouts . | . . Manual 12 | . 12 Terminals 19 | . 19 Fabricators . | . . Repair Stations . | . . Recycling Units . | . . Scanalyzers . | . . Garrison Access . | . . Terminal Hacks 8 | . 8 Robot Analysis 2 | . 2 Prototype ID Bank 2 | . 2 Alert Level 1 | . 1 Locate Traps 2 | . 2 Reprogram Traps 1 | . 1 Fabricator Hacks . | . . Repair Station Hacks . | . . Recycling Unit Hacks . | . . Scanalyzer . | . . Garrison Access Hacks . | . . Unauthorized Hacks 6 | . 6 Terminals 6 | . 6 Botnet 1 | . 1 Skim 5 | . 5 Fabricators . | . . Repair Stations . | . . Recycling Units . | . . Scanalyzers . | . . Garrison Access . | . . Data Cores Recovered . | . . Used . | . . Hacking Detections 6 | . 6 Full Trace Events . | . . Feedback Events . | . . Feedback Blocked . | . . Robot Schematics Acquired . | . . Robots Built . | . . Authchips . | . . Time . | . . Total Robot Build Rating . | . . Part Schematics Acquired . | . . Parts Built . | . . Authchips . | . . Time . | . . Total Part Build Rating . | . . Parts Repaired . | . . Time . | . . Parts Recycled . | . . Recycled Matter . | . . Retrieved Matter . | . . Retrieved Components . | . . Parts Scanalyzed . | . . Part Schematics Acquired . | . . Parts Damaged . | . . Bothacking | -11 -10 ------------ Run | Yrd Mat Used RIF Installer . | . . Robots Hacked . | . . Non-combat . | . . Combat . | . . Robot Hacks Applied . | . . Relay Couplers Released . | . . Fabnet Peak Effective % . | . . Robots Rewired . | . . Allies Hacked . | . . Hacks Repelled . | . . Allies | -11 -10 -------- Run | Yrd Mat Total Allies . | . . Largest Group . | . . Highest-Rated Group . | . . Highest-Rated Ally . | . . Total Orders . | . . Ally Attacks . | . . Total Damage . | . . Kills . | . . Allies Corrupted . | . . Allies Melted . | . . Intel | -11 -10 ------- Run | Yrd Mat Active Infowar (turns) 416 | 44 372 Seismic 416 | 44 372 Robot Analysis Total 2 | . 2 Derelict Logs Recovered . | . . Drone Launches . | . . Drone Recoveries . | . . Exploration | -11 -10 ------------- Run | Yrd Mat Turns Passed 1576 | 154 1422 Spaces Moved 647 | 94 553 Core 9 | 9 . Treads . | . . Legs 638 | 85 553 Wheels . | . . Hover . | . . Flight . | . . Fastest Speed 50 | 50 120 Average Speed 178 | 113 190 Slowest Speed 260 | 120 260 Overloaded Moves . | . . Propulsion Burnouts . | . . Robots Hopped . | . . Potential Cave-ins . | . . Cave-ins Triggered . | . . Exploration Rate (%) 43 | 5 82 Regions Visited 1 Branch Regions . Pre-discovered Areas . | . . Known Exits Taken . | . . Unknown Exits Taken 1 | 1 . Scrap Searched . | . . Spaces Dug . | . . Terrain Destroyed . | . . Melee . | . . Projectile . | . . AOE . | . . Terrain Rammed . | . . Walls Destroyed . | . . Machines Disabled . | . . Actions | -11 -10 --------- Run | Yrd Mat Total 860 | 118 742 Wait 54 | . 54 Move 646 | 93 553 Hop . | . . Pick Up 17 | 7 10 Fast Attach 8 | 7 1 Attach 6 | . 6 Detach . | . . Swap 10 | . 10 Drop 6 | . 6 Fire 113 | 11 102 Melee . | . . Ram . | . . Kick . | . . Crush . | . . Escape Stasis . | . . Rewire . | . . Trap . | . . Miscellaneous . | . . Route ------- -11/Scrapyard -10/Materials (discovered 5 exits: *Mat x3 / Min / Sub) History --------- Turn | Location | Event 10 | -11/Scrapyard | Discovered new exit (range 13) 155 | -11/Scrapyard | Entered Materials 314 | -10/Materials | Build established: Mutant 415 | -10/Materials | Discovered new exit (range 7) 731 | -10/Materials | Core integrity fell below 50% 1130 | -10/Materials | Identified exit to Materials 1130 | -10/Materials | Identified exit to Subcaves 1147 | -10/Materials | Discovered exit to Materials (range 16) 1176 | -10/Materials | Learned Storage trap positions 1212 | -10/Materials | Learned Storage trap positions 1237 | -10/Materials | Learned 4 Recycling zone layouts 1253 | -10/Materials | Learned location of 1 exit from Storage 1264 | -10/Materials | Core integrity fell below 20% 1278 | -10/Materials | Learned location of 1 exit from Recycling 1311 | -10/Materials | Identified exit to Mines 1577 | -10/Materials | Destroyed by G-34 Mercenary with Small Laser Last Messages --------------- 01338_ Acquired 47 matter. 01338_ U-05 Engineer builds a Door. 01343_ Acquired Aluminum Leg. 01361_ Dropped Aluminum Leg. 01377_ A-02 Transporter destroyed. 01389_ Acquired Lgt. Treads. 01392_ K-01 Serf cleans the Fusion Modulator. 01392_ Acquired 55 matter. 01397_ K-01 Serf collects debris. 01401_ K-01 Serf cleans the Fusion Modulator. 01403_ K-01 Serf collects debris. 01435_ T-07 Excavator is excavating. 01447_ U-05 Engineer lays Concrete. 01474_ Dropped Lrg. Storage Unit. 01485_ T-07 Excavator is excavating. 01486_ U-05 Engineer lays Concrete. 01569_ Triggered Alarm Trap. 01569_ An alarm sounds. 01569_ ALERT: Alarm triggered, dispatching investigation squad. Map ----- +----------------------------------------------------+ | #######+### # ????????? | | ^ """ """ #???????? | | ^ """ """ # ###???????? | | !! ######## """ """ ###?????????? | | ####! !! # ! # #???????????? | | ####!! = # T # ###########?? | | # ! = #!= #![[ """ ## #?? | | %+!| [*#=""" #![ """ ##""" #?? | | #* """ **# """ #[[ """ ##""" #?? | | # """ [ +!["" # #""" #?? | | # """ ! #!""" # + #?? | | # !#! # ##+########""" #?? | | #### ######### ## ?????#""" #?? | | ???# " #? # ## !!???#""" #?? | | #### T # """ # ## !! ?# #?? | | " # """ ! # ## ###########?? | | + """ # ## #???????????? | | # # ## """ #???????????? | | ######### # # ## """ #???????????? | | #??? # #?####### ## """ #???????????? | | #??? # #??????## ## ?? #???????????? | | #???? # #??????# #########???????????? | | ???? # #??????# #????????????? | | ########+## #??????# gg < #????????????? | | #??????# g #????????????? | | ####+#####???# @ ########????????????? | | = # #???## ##???????????????????? | | ! + """ #????# #????????????????????? | | ######### """ #????#^ #????????????????????? | | ????????# """ #????# #????????????????????? | | ????????# #????# #????????????????????? | | ????????# """ #????# k????????????????????? | | ###?????# """ #????# #????????????????????? | | //#?????# """ #????# #????????????????????? | | / #?????# #????# #????????????????????? | | !!#?????##########????# ?????????????????????? | | ! #???????????????????# ?????????????????????? | | ==#???? ????????????# ?????????????????????? | | ==#???? ???????????# ?????????????????????? | | ###???? ???????????# ?????????????????????? | | ###???? ??????????? ?????????????????????? | | #???# #???????????? ?????????????????????? | | # #???# #????????????????????????????????????? | | # #???# #????????????????????????????????????? | | # #???# #????????????????????????????????????? | | # #???# #????????????????????????????????????? | | # #???# #????????????????????????????????????? | | # #???# #????????????????????????????????????? | | #+##### #????????????????????????????????????? | | """ # #????????????????????????????????????? | +----------------------------------------------------+ Best States ------------- Heat Dissipation 25 Energy Generation 10 Energy Capacity 250 Matter Stores 300 Matter Capacity 300 Sight Range 16 Terrain Scan Density 10 Utility Shielding 33 Evasion (%) 55 Item Schematics ----------------- None Robot Schematics ------------------ None Fabricated ------------ Nothing Repaired ---------- Nothing Alien Tech Used ----------------- None Achievements -------------- None Challenges ------------ None Game ------ Seed CargoSupersonicLattice Manual? 0 Play Time 00:15:13 Cumulative 73.0 hours Start 2025.07.10 @ 14:45:53 End 2025.07.10 @ 14:54:08 Sessions 1 Manual Loads 0 Difficulty Rogue Special Mode None Game No. 66 Rogue 66 Adventurer 0 Explorer 0 Win Type - Total 1 Types 1/0/0/0/0/0/0/0/0/0 Lore% 42 Gallery% 42 Achievement% 43 Wizard Run 0 Options --------- Layout 1 ASCII 0 Keyboard 1 Movement Arrows Keybinds 0 Fullscreen 1 Font 24/Smallcaps Map View 50x40 Zoom Use 0% Tactical HUD 1 Map Filters NONE Filters NONE Steam 1 RUN: 90449b67-9432-47d6-9493-8eb11129dc99